[Event "FIDE World Rapid-ch Open 2018"]
[White "Carlsen, Magnus"]
[Black "Salgado Lopez, Ivan"]
[Site "St. Petersburg"]
[Round "6.1"]
[Annotator "RC"]
[Result "1-0"]
[Date "2018.12.27"]
[WhiteElo "2835"]
[BlackElo "2629"]
[PlyCount "65"]
[TimeControl "900+10"]

1. c4 {[%emt 0:0:0]} c5 {[%emt 0:0:0]} 2. g3 {[%emt 0:0:0]} g6 {[%emt 0:0:0]} 3. Bg2 {[%emt 0:0:0]} Bg7 {[%emt 0:0:1]} 4. Nc3 {[%emt 0:0:2]} Nc6 {[%emt 0:0:2]} 5. Nf3 {[%emt 0:0:3]} d6 {[%emt 0:0:3]} 6. 0-0 {[%emt 0:0:20]
} Bf5 {[%emt 0:0:3]} 7. h3 {[%emt 0:0:26]} Nf6 {[%emt 0:0:39]
} 8. d3 {[%emt 0:0:8]} 0-0 {[%emt 0:0:16]} 9. Rb1 {[%emt 0:0:54]} a6 {[%emt 0:1:33]
} 10. a3 {[%emt 0:0:10]} Rb8 {[%emt 0:0:25]} 11. b4 {[%emt 0:0:0]} cxb4 {[%emt 0:0:5]} 12. axb4 {[%emt 0:0:7]} b5 {[%emt 0:0:2]} 13. e4 {[%emt 0:0:52]} Bd7 {[%emt 0:0:20]} 14. cxb5 {[%emt 0:2:6]} axb5 {[%emt 0:0:2]
} 15. Bd2 {[%emt 0:2:13]} Ne5 {[%emt 0:1:49]} 16. Nxe5 {[%emt 0:2:52]
} dxe5 {[%emt 0:0:2]} 17. Kh2 {[%emt 0:0:10]} Ne8 {[%emt 0:0:0]} 18. Be3 {[%emt 0:0:6]} Nc7 {[%emt 0:0:7]} 19. Qd2 {[%emt 0:0:33]} Bc6 {[%emt 0:1:18]} 20. Rfc1 {[%emt 0:0:15]} Qd7 {[%emt 0:0:5]} 21. Ra1 {[%emt 0:0:12]
} Ne6 {[%emt 0:1:37]} 22. Nd5 {[%emt 0:0:30]} Bxd5 {[%emt 0:0:0]} 23. exd5 {[%emt 0:0:2]} Nd4 {[%emt 0:0:2]} 24. Bxd4 {[%emt 0:0:3]} exd4 {[%emt 0:0:2]} 25. Qf4 {[%emt 0:0:29]} Qf5 {[%emt 0:2:15]} 26. Qxf5 {[%emt 0:0:3]
} gxf5 {[%emt 0:0:1]} 27. d6 {[%emt 0:0:3]} exd6 {[%emt 0:0:0]} 28. Ra7 {[%emt 0:0:19]} Rbc8 {[%emt 0:2:3]} 29. Rxc8 {[%emt 0:0:7]} Rxc8 {[%emt 0:0:2]} 30. Bd5 {[%emt 0:0:3]} f4 {[%emt 0:2:13]} 31. gxf4 {[%emt 0:0:53]
} Bh6 {[%emt 0:0:5]} 32. Rxf7 {[%emt 0:0:39]} Rc3 {[%emt 0:0:0]} 33. f5 {[%emt 0:0:24]} 1-0

[Event "FIDE World Rapid-ch Open 2018"]
[White "Firouzja, Alireza"]
[Black "Andreikin, Dmitry"]
[Site "St. Petersburg"]
[Round "6.2"]
[Annotator "ChessBase"]
[Result "0-1"]
[Date "2018.12.27"]
[WhiteElo "2607"]
[BlackElo "2719"]
[PlyCount "108"]
[TimeControl "900+10"]

1. d4 {[%emt 0:0:0]} Nf6 {[%emt 0:0:0]} 2. c4 {[%emt 0:0:0]} e6 {[%emt 0:0:0]} 3. g3 {[%emt 0:0:0]} Bb4+ {[%emt 0:0:4]} 4. Nd2 {[%emt 0:0:9]} c5 {[%emt 0:0:7]} 5. Ngf3 {[%emt 0:1:25]} cxd4 {[%emt 0:0:7]} 6. Nxd4 {[%emt 0:0:3]
} Qb6 {[%emt 0:0:57]} 7. a3 {[%emt 0:1:51]} Bxd2+ {[%emt 0:0:0]} 8. Qxd2 {[%emt 0:0:2]} Nc6 {[%emt 0:0:4]} 9. Nb5 {[%emt 0:1:0]} d5 {[%emt 0:0:45]
} 10. Qe3 {[%emt 0:4:3]} d4 {[%emt 0:0:26]} 11. Nd6+ {[%emt 0:0:0]} Ke7 {[%emt 0:0:45]} 12. Qg5 {[%emt 0:0:9]} h6 {[%emt 0:2:1]} 13. Nxc8+ {[%emt 0:3:14]} Raxc8 {[%emt 0:0:2]} 14. Qb5 {[%emt 0:0:12]} Qxb5 {[%emt 0:2:45]
} 15. cxb5 {[%emt 0:0:2]} Na5 {[%emt 0:0:1]} 16. Bd2 {[%emt 0:0:51]
} Nb3 {[%emt 0:0:3]} 17. Bb4+ {[%emt 0:0:8]} Kd7 {[%emt 0:0:0]} 18. Rb1 {[%emt 0:0:56]} Nd5 {[%emt 0:2:16]} 19. Bg2 {[%emt 0:0:19]} Nxb4 {[%emt 0:0:34]} 20. axb4 {[%emt 0:0:5]} Rc4 {[%emt 0:0:2]} 21. Bxb7 {[%emt 0:0:12]
} Rxb4 {[%emt 0:0:2]} 22. Ba6 {[%emt 0:1:5]} e5 {[%emt 0:0:0]} 23. f3 {[%emt 0:0:9]} Rb8 {[%emt 0:0:44]} 24. Kf2 {[%emt 0:0:6]} Nc5 {[%emt 0:0:11]} 25. Rbc1 {[%emt 0:0:31]} Kd6 {[%emt 0:0:55]} 26. Rc2 {[%emt 0:0:1]
} Rb6 {[%emt 0:0:56]} 27. Rhc1 {[%emt 0:0:15]} Nxa6 {[%emt 0:0:0]} 28. Rc6+ {[%emt 0:0:2]} Kd7 {[%emt 0:0:20]} 29. Rxb6 {[%emt 0:0:1]
} axb6 {[%emt 0:0:1]} 30. bxa6 {[%emt 0:0:1]} Ra4 {[%emt 0:0:1]} 31. f4 {[%emt 0:0:1]
} Rxa6 {[%emt 0:0:46]} 32. fxe5 {[%emt 0:0:3]} Ra2 {[%emt 0:0:0]} 33. Rc2 {[%emt 0:0:13]} Ra5 {[%emt 0:0:10]} 34. Kf3 {[%emt 0:0:45]} Rxe5 {[%emt 0:0:8]} 35. Rd2 {[%emt 0:0:1]} Re3+ {[%emt 0:0:38]} 36. Kf2 {[%emt 0:0:33]
} Re4 {[%emt 0:0:3]} 37. e3 {[%emt 0:0:1]} Kd6 {[%emt 0:0:0]} 38. exd4 {[%emt 0:0:16]} Kd5 {[%emt 0:0:2]} 39. Rc2 {[%emt 0:0:1]} Rxd4 {[%emt 0:0:19]} 40. Ke3 {[%emt 0:0:32]} Re4+ {[%emt 0:0:13]} 41. Kd3 {[%emt 0:0:2]
} Rd4+ {[%emt 0:0:1]} 42. Ke3 {[%emt 0:0:1]} Rb4 {[%emt 0:0:0]} 43. Rc7 {[%emt 0:0:21]} Rb3+ {[%emt 0:0:12]} 44. Kf4 {[%emt 0:0:12]} Rxb2 {[%emt 0:0:5]} 45. h4 {[%emt 0:0:1]} Rf2+ {[%emt 0:0:39]} 46. Ke3 {[%emt 0:0:6]
} Rf6 {[%emt 0:0:1]} 47. h5 {[%emt 0:0:23]} b5 {[%emt 0:0:12]
} 48. g4 {[%emt 0:0:9]} b4 {[%emt 0:0:9]} 49. Rc8 {[%emt 0:0:17]} Rb6 {[%emt 0:0:32]
} 50. Rd8+ {[%emt 0:0:6]} Ke5 {[%emt 0:0:7]} 51. Re8+ {[%emt 0:0:4]
} Kf6 {[%emt 0:0:5]} 52. Kd2 {[%emt 0:0:8]} b3 {[%emt 0:0:0]} 53. Kc1 {[%emt 0:0:0]} b2+ {[%emt 0:0:4]} 54. Kb1 {[%emt 0:0:1]} Rb4 {[%emt 0:0:6]} 0-1

[Event "FIDE World Rapid-ch Open 2018"]
[White "Nepomniachtchi, Ian"]
[Black "Mamedyarov, Shakhriyar"]
[Site "St. Petersburg"]
[Round "6.3"]
[Annotator "RC"]
[Result "1/2-1/2"]
[Date "2018.12.27"]
[WhiteElo "2763"]
[BlackElo "2817"]
[PlyCount "37"]
[TimeControl "900+10"]

1. c4 {[%emt 0:0:0]} e5 {[%emt 0:0:0]} 2. Nc3 {[%emt 0:0:0]} Nf6 {[%emt 0:0:4]
} 3. Nf3 {[%emt 0:0:5]} Nc6 {[%emt 0:0:4]} 4. g3 {[%emt 0:0:0]} d5 {[%emt 0:0:6]} 5. cxd5 {[%emt 0:0:2]} Nxd5 {[%emt 0:0:3]} 6. Bg2 {[%emt 0:0:2]} Bc5 {[%emt 0:0:8]} 7. 0-0 {[%emt 0:0:7]} 0-0 {[%emt 0:0:0]} 8. d3 {[%emt 0:0:3]} Re8 {[%emt 0:1:2]} 9. Qb3 {[%emt 0:0:2]} Nxc3 {[%emt 0:1:31]
} 10. bxc3 {[%emt 0:0:2]} Bb6 {[%emt 0:0:2]} 11. Nd2 {[%emt 0:0:12]
} Bg4 {[%emt 0:0:23]} 12. Re1 {[%emt 0:1:5]} Qf6 {[%emt 0:0:0]} 13. Ne4 {[%emt 0:0:8]} Qg6 {[%emt 0:0:6]} 14. Ba3 {[%emt 0:1:45]} h5 {[%emt 0:1:13]} 15. h4 {[%emt 0:0:54]} Rad8 {[%emt 0:0:21]} 16. Ng5 {[%emt 0:1:23]
} Qf6 {[%emt 0:0:53]} 17. Ne4 {[%emt 0:0:5]} Qg6 {[%emt 0:0:0]} 18. Ng5 {[%emt 0:2:12]} Qf6 {[%emt 0:2:14]} 19. Ne4 {[%emt 0:0:17]} 1/2-1/2

[Event "FIDE World Rapid-ch Open 2018"]
[White "Wang, Hao"]
[Black "Gelfand, Boris"]
[Site "St. Petersburg"]
[Round "6.4"]
[Annotator "ChessBase"]
[Result "1/2-1/2"]
[Date "2018.12.27"]
[WhiteElo "2730"]
[BlackElo "2673"]
[PlyCount "79"]
[TimeControl "900+10"]

1. d4 {[%emt 0:0:0]} Nf6 {[%emt 0:0:0]} 2. Nf3 {[%emt 0:0:0]} d5 {[%emt 0:0:0]
} 3. Bf4 {[%emt 0:0:0]} c5 {[%emt 0:0:11]} 4. e3 {[%emt 0:0:0]} Nc6 {[%emt 0:0:3]} 5. Nbd2 {[%emt 0:0:2]} cxd4 {[%emt 0:0:11]} 6. exd4 {[%emt 0:0:2]} Bf5 {[%emt 0:0:2]} 7. c3 {[%emt 0:0:7]} e6 {[%emt 0:0:0]} 8. Nh4 {[%emt 0:0:23]} Bg4 {[%emt 0:0:36]} 9. Qb3 {[%emt 0:1:8]} Bd6 {[%emt 0:0:11]} 10. Bxd6 {[%emt 0:0:53]} Qxd6 {[%emt 0:0:1]} 11. h3 {[%emt 0:0:3]
} Bh5 {[%emt 0:0:10]} 12. Bd3 {[%emt 0:0:4]} 0-0-0 {[%emt 0:0:0]} 13. Bb5 {[%emt 0:4:8]} Kb8 {[%emt 0:1:0]} 14. Nhf3 {[%emt 0:0:33]} Bxf3 {[%emt 0:1:4]} 15. Nxf3 Ne4 16. 0-0 {[%emt 0:1:34]} g5 {[%emt 0:1:16]} 17. Rfe1 {[%emt 0:0:2]} Rhg8 {[%emt 0:1:50]} 18. c4 {[%emt 0:1:1]} f6 {[%emt 0:1:33]
} 19. Bxc6 {[%emt 0:2:3]} Qxc6 {[%emt 0:0:2]} 20. Rac1 {[%emt 0:0:2]
} g4 {[%emt 0:2:3]} 21. cxd5 {[%emt 0:1:55]} gxf3 {[%emt 0:0:0]} 22. Qxf3 {[%emt 0:0:2]} Ng5 {[%emt 0:0:1]} 23. dxc6 {[%emt 0:1:15]} Nxf3+ {[%emt 0:0:1]} 24. Kh1 {[%emt 0:0:1]} Rxd4 {[%emt 0:0:17]} 25. gxf3 {[%emt 0:0:33]} e5 {[%emt 0:0:25]} 26. Rc2 {[%emt 0:2:58]} Rd3 {[%emt 0:0:0]} 27. cxb7 {[%emt 0:0:14]} Rxf3 {[%emt 0:0:29]} 28. Kh2 {[%emt 0:0:9]} Kxb7 {[%emt 0:1:3]} 29. Re4 {[%emt 0:0:1]} Rf5 {[%emt 0:0:14]} 30. Rb4+ {[%emt 0:0:18]
} Ka8 {[%emt 0:0:4]} 31. Rg4 {[%emt 0:0:19]} Rxg4 {[%emt 0:0:0]} 32. hxg4 {[%emt 0:0:1]} Rg5 {[%emt 0:0:1]} 33. f3 {[%emt 0:0:11]} h5 {[%emt 0:0:10]} 34. Kh3 {[%emt 0:0:14]} hxg4+ {[%emt 0:0:49]} 35. fxg4 {[%emt 0:0:1]
} f5 {[%emt 0:0:1]} 36. gxf5 {[%emt 0:0:14]} Rxf5 {[%emt 0:0:0]} 37. Re2 {[%emt 0:0:3]} Rg5 {[%emt 0:0:40]} 38. Kh4 {[%emt 0:0:3]} Rg8 {[%emt 0:0:1]} 39. Rxe5 {[%emt 0:0:8]} Rg2 {[%emt 0:0:1]} 40. Rb5 {[%emt 0:0:3]
} 1/2-1/2

[Event "FIDE World Rapid-ch Open 2018"]
[White "Yu, Yangyi"]
[Black "Zubov, Alexander"]
[Site "St. Petersburg"]
[Round "6.5"]
[Annotator "RC"]
[Result "1-0"]
[Date "2018.12.27"]
[WhiteElo "2764"]
[BlackElo "2597"]
[PlyCount "107"]
[TimeControl "900+10"]

1. e4 {[%emt 0:0:0]} Nc6 {[%emt 0:0:0]} 2. Nf3 {[%emt 0:0:0]} d6 {[%emt 0:0:0]
} 3. d4 {[%emt 0:0:7]} Nf6 {[%emt 0:0:0]} 4. Bb5 {[%emt 0:0:0]} Bd7 {[%emt 0:0:55]} 5. Nc3 {[%emt 0:0:4]} a6 {[%emt 0:0:8]} 6. Bxc6 {[%emt 0:0:29]
} Bxc6 {[%emt 0:0:1]} 7. Qe2 {[%emt 0:0:6]} d5 {[%emt 0:0:0]} 8. Ne5 {[%emt 0:1:43]} dxe4 {[%emt 0:0:3]} 9. Nxc6 {[%emt 0:0:41]} bxc6 {[%emt 0:0:1]} 10. Qc4 {[%emt 0:2:22]} Qd7 {[%emt 0:0:2]} 11. Bg5 {[%emt 0:0:2]
} e6 {[%emt 0:1:56]} 12. Bxf6 {[%emt 0:0:26]} gxf6 {[%emt 0:0:0]} 13. Nxe4 {[%emt 0:0:2]} Bg7 {[%emt 0:0:13]} 14. c3 {[%emt 0:1:0]} Qd5 {[%emt 0:0:11]} 15. Qe2 {[%emt 0:0:1]} f5 {[%emt 0:1:52]} 16. Nc5 {[%emt 0:0:0]} Qxg2 {[%emt 0:2:21]} 17. 0-0-0 {[%emt 0:0:3]} Qd5 {[%emt 0:0:8]} 18. Rhg1 {[%emt 0:1:26]} Bf6 {[%emt 0:0:38]} 19. Nxa6 {[%emt 0:1:50]} Qa5 {[%emt 0:3:13]
} 20. Nb4 {[%emt 0:0:3]} Qb5 {[%emt 0:0:14]} 21. Qf3 {[%emt 0:0:0]} Be7 {[%emt 0:0:2]} 22. a3 {[%emt 0:0:17]} Bxb4 {[%emt 0:0:5]} 23. cxb4 {[%emt 0:0:1]} 0-0-0 {[%emt 0:0:17]} 24. Kb1 {[%emt 0:0:21]} Qd5 {[%emt 0:0:20]
} 25. Qh5 {[%emt 0:0:40]} Rd7 {[%emt 0:1:42]} 26. Ka1 {[%emt 0:0:0]} Qe4 {[%emt 0:1:18]} 27. Rge1 {[%emt 0:0:23]} Qf4 {[%emt 0:0:7]} 28. Qe2 {[%emt 0:0:31]} Rd6 {[%emt 0:0:13]} 29. Rc1 {[%emt 0:1:39]} Qxd4 {[%emt 0:1:7]
} 30. Qa6+ {[%emt 0:0:52]} Kd7 {[%emt 0:0:12]} 31. b5 {[%emt 0:0:0]} c5 {[%emt 0:0:28]} 32. Qa7 {[%emt 0:0:24]} c4 {[%emt 0:0:4]} 33. Qa4 {[%emt 0:0:14]} c3 {[%emt 0:0:3]} 34. Qxd4 {[%emt 0:0:1]} Rxd4 {[%emt 0:0:1]
} 35. Rxc3 {[%emt 0:0:1]} Rb8 {[%emt 0:0:6]} 36. Rec1 {[%emt 0:0:3]
} Rb7 {[%emt 0:0:10]} 37. R1c2 {[%emt 0:0:36]} h5 {[%emt 0:0:0]} 38. Ka2 {[%emt 0:0:9]} h4 {[%emt 0:0:7]} 39. b4 {[%emt 0:0:6]} e5 {[%emt 0:0:18]
} 40. Rc5 {[%emt 0:0:22]} f6 {[%emt 0:0:4]} 41. Kb3 {[%emt 0:0:0]} Rd3+ {[%emt 0:0:8]} 42. Kb2 {[%emt 0:0:1]} Ra7 {[%emt 0:0:17]} 43. R5c3 {[%emt 0:0:24]} Rd5 {[%emt 0:0:2]} 44. Rc6 {[%emt 0:0:21]} Rd3 {[%emt 0:0:10]
} 45. Ra6 {[%emt 0:0:34]} Rxa6 {[%emt 0:0:26]} 46. bxa6 {[%emt 0:0:0]
} Rd6 {[%emt 0:0:6]} 47. b5 {[%emt 0:0:8]} Kc8 {[%emt 0:0:0]} 48. a7 {[%emt 0:0:13]} Kb7 {[%emt 0:0:1]} 49. Rxc7+ {[%emt 0:0:3]} Ka8 {[%emt 0:0:0]} 50. a4 {[%emt 0:0:7]} Rb6 {[%emt 0:0:12]} 51. Kc3 {[%emt 0:0:14]
} f4 {[%emt 0:0:8]} 52. Kc4 {[%emt 0:0:55]} e4 {[%emt 0:0:15]
} 53. a5 {[%emt 0:0:8]} Rb7 {[%emt 0:0:5]} 54. b6 {[%emt 0:0:11]} 1-0

[Event "FIDE World Rapid-ch Open 2018"]
[White "Anton Guijarro, David"]
[Black "Kamsky, Gata"]
[Site "St. Petersburg"]
[Round "6.6"]
[Annotator "ChessBase"]
[Result "1-0"]
[Date "2018.12.27"]
[WhiteElo "2642"]
[BlackElo "2666"]
[PlyCount "81"]
[TimeControl "900+10"]

1. e4 {[%emt 0:0:0]} c5 {[%emt 0:0:0]} 2. Nf3 {[%emt 0:0:0]} e6 {[%emt 0:0:0]} 3. d3 {[%emt 0:0:8]} Nc6 {[%emt 0:0:56]} 4. g3 {[%emt 0:0:4]} g6 {[%emt 0:1:41]
} 5. Bg2 {[%emt 0:0:5]} Bg7 {[%emt 0:0:3]} 6. 0-0 {[%emt 0:0:0]} Nge7 {[%emt 0:0:31]} 7. c3 {[%emt 0:0:26]} 0-0 {[%emt 0:0:38]} 8. Re1 {[%emt 0:1:43]} e5 {[%emt 0:2:41]} 9. a3 {[%emt 0:0:31]} d6 {[%emt 0:0:0]} 10. b4 {[%emt 0:0:17]} b6 {[%emt 0:0:35]} 11. Nbd2 {[%emt 0:0:37]} h6 {[%emt 0:0:10]
} 12. Bb2 {[%emt 0:0:51]} a6 {[%emt 0:1:12]} 13. Nc4 {[%emt 0:0:0]} b5 {[%emt 0:1:24]} 14. Ne3 {[%emt 0:0:19]} a5 {[%emt 0:0:12]} 15. bxc5 {[%emt 0:0:58]} dxc5 {[%emt 0:0:3]} 16. Nd5 {[%emt 0:0:12]} Rb8 {[%emt 0:0:13]
} 17. a4 {[%emt 0:1:6]} b4 {[%emt 0:0:33]} 18. c4 {[%emt 0:0:0]} Qd6 {[%emt 0:1:9]} 19. Nd2 {[%emt 0:0:44]} Bd7 {[%emt 0:2:35]} 20. Nb3 {[%emt 0:0:25]} g5 {[%emt 0:0:52]} 21. Qh5 {[%emt 0:1:20]} Ng6 {[%emt 0:0:0]} 22. Bh3 {[%emt 0:0:47]} Bxh3 {[%emt 0:0:13]} 23. Qxh3 {[%emt 0:0:2]} Nd4 {[%emt 0:0:9]} 24. Bxd4 {[%emt 0:0:26]} exd4 {[%emt 0:0:2]} 25. Qf5 {[%emt 0:0:32]
} Kh8 {[%emt 0:0:48]} 26. f4 {[%emt 0:0:48]} gxf4 {[%emt 0:0:0]} 27. gxf4 {[%emt 0:0:1]} Rbc8 {[%emt 0:0:9]} 28. Nxa5 {[%emt 0:0:35]} Qd8 {[%emt 0:0:19]} 29. Nb3 {[%emt 0:0:19]} Qh4 {[%emt 0:0:2]} 30. Re2 {[%emt 0:0:40]
} Rc6 {[%emt 0:0:25]} 31. Rg2 {[%emt 0:0:19]} Qd8 {[%emt 0:0:0]} 32. Rg3 {[%emt 0:0:23]} Ne7 {[%emt 0:0:6]} 33. Nxe7 {[%emt 0:0:14]} Qxe7 {[%emt 0:0:1]} 34. Kh1 {[%emt 0:0:36]} Rf6 {[%emt 0:0:15]} 35. Qg4 {[%emt 0:0:4]
} Rg6 {[%emt 0:0:1]} 36. Qf3 {[%emt 0:0:1]} Rg8 {[%emt 0:0:0]} 37. a5 {[%emt 0:0:11]} Bf8 {[%emt 0:0:14]} 38. e5 {[%emt 0:0:14]} Qd7 {[%emt 0:0:6]
} 39. Rxg6 {[%emt 0:0:23]} Rxg6 {[%emt 0:0:8]} 40. a6 {[%emt 0:0:7]
} Qa7 {[%emt 0:0:29]} 41. Qb7 {[%emt 0:0:4]} 1-0

[Event "FIDE World Rapid-ch Open 2018"]
[White "Svidler, Peter"]
[Black "Vitiugov, Nikita"]
[Site "St. Petersburg"]
[Round "6.7"]
[Annotator "RC"]
[Result "1/2-1/2"]
[Date "2018.12.27"]
[WhiteElo "2737"]
[BlackElo "2719"]
[PlyCount "53"]
[TimeControl "900+10"]

1. Nf3 {[%emt 0:0:0]} d5 {[%emt 0:0:0]} 2. c4 {[%emt 0:0:10]} d4 {[%emt 0:0:0]} 3. b4 {[%emt 0:0:8]} c5 {[%emt 0:0:7]} 4. g3 {[%emt 0:0:36]} cxb4 {[%emt 0:0:31]} 5. a3 {[%emt 0:0:2]} e6 {[%emt 0:0:15]} 6. Bg2 {[%emt 0:0:0]} Nc6 {[%emt 0:0:3]} 7. 0-0 {[%emt 0:0:19]} a5 {[%emt 0:0:30]} 8. axb4 {[%emt 0:1:11]
} Bxb4 {[%emt 0:0:4]} 9. Ne1 {[%emt 0:0:41]} Nge7 {[%emt 0:0:0]} 10. Nd3 {[%emt 0:0:7]} 0-0 {[%emt 0:1:16]} 11. Nxb4 {[%emt 0:0:21]} Nxb4 {[%emt 0:0:2]} 12. Ba3 {[%emt 0:0:1]} Ra6 {[%emt 0:0:15]} 13. d3 {[%emt 0:0:9]
} e5 {[%emt 0:0:43]} 14. Nd2 {[%emt 0:0:4]} Rh6 {[%emt 0:0:0]} 15. Bxb4 {[%emt 0:2:5]} axb4 {[%emt 0:0:2]} 16. Qa4 {[%emt 0:0:2]} Nc6 {[%emt 0:0:59]} 17. Qb5 {[%emt 0:0:44]} Qe7 {[%emt 0:0:27]} 18. Rfb1 {[%emt 0:0:16]
} Bg4 {[%emt 0:0:25]} 19. Re1 {[%emt 0:1:52]} Bh3 {[%emt 0:0:0]} 20. Bd5 {[%emt 0:0:14]} Bg4 {[%emt 0:0:58]} 21. Ne4 {[%emt 0:1:45]} Bf5 {[%emt 0:1:12]} 22. Qc5 {[%emt 0:1:11]} Qd7 {[%emt 0:1:15]} 23. Ng5 {[%emt 0:0:19]
} Rf6 {[%emt 0:0:54]} 24. Reb1 {[%emt 0:0:20]} h6 {[%emt 0:0:0]} 25. Ne4 {[%emt 0:0:32]} Bxe4 {[%emt 0:0:4]} 26. Bxe4 {[%emt 0:0:4]} Re8 {[%emt 0:0:3]} 27. Qb5 {[%emt 0:0:33]} 1/2-1/2

[Event "FIDE World Rapid-ch Open 2018"]
[White "Korobov, Anton"]
[Black "Bosiocic, Marin"]
[Site "St. Petersburg"]
[Round "6.8"]
[Annotator "ChessBase"]
[Result "1-0"]
[Date "2018.12.27"]
[WhiteElo "2698"]
[BlackElo "2599"]
[PlyCount "103"]
[TimeControl "900+10"]

1. d4 {[%emt 0:0:0]} Nf6 {[%emt 0:0:0]} 2. c4 {[%emt 0:0:0]} e6 {[%emt 0:0:0]} 3. Nf3 {[%emt 0:0:0]} d5 {[%emt 0:0:0]} 4. Nc3 {[%emt 0:0:0]} a6 {[%emt 0:0:0]} 5. cxd5 {[%emt 0:0:8]} exd5 {[%emt 0:0:0]} 6. Bg5 {[%emt 0:0:3]
} Be6 {[%emt 0:0:0]} 7. e3 {[%emt 0:0:5]} Nbd7 {[%emt 0:0:0]} 8. Bd3 {[%emt 0:0:4]} Bd6 {[%emt 0:0:2]} 9. 0-0 {[%emt 0:0:12]} 0-0 {[%emt 0:0:15]
} 10. Rc1 {[%emt 0:0:4]} c6 {[%emt 0:0:2]} 11. h3 {[%emt 0:0:0]} Qc7 {[%emt 0:0:41]} 12. Ne2 {[%emt 0:0:6]} Ne4 {[%emt 0:0:44]} 13. Bf4 {[%emt 0:0:3]} f5 {[%emt 0:1:12]} 14. Qb3 {[%emt 0:0:52]} b6 {[%emt 0:0:0]} 15. Rc2 {[%emt 0:1:37]} h6 {[%emt 0:0:12]} 16. Rfc1 {[%emt 0:0:37]} c5 {[%emt 0:0:16]} 17. dxc5 {[%emt 0:0:11]} Ndxc5 {[%emt 0:0:38]} 18. Qa3 {[%emt 0:0:34]
} a5 {[%emt 0:0:0]} 19. Nfd4 {[%emt 0:0:25]} Bd7 {[%emt 0:0:0]} 20. f3 {[%emt 0:2:8]} Ng5 21. Bxd6 {[%emt 0:0:0]} Qxd6 {[%emt 0:0:47]
} 22. Nf4 {[%emt 0:0:2]} Rae8 {[%emt 0:1:45]} 23. Bf1 {[%emt 0:0:39]} Nf7 {[%emt 0:0:27]
} 24. Rd2 {[%emt 0:1:20]} g5 {[%emt 0:0:53]} 25. Nfe2 f4 26. exf4 {[%emt 0:0:22]} gxf4 {[%emt 0:0:11]} 27. Nb3 {[%emt 0:0:26]} Re3 {[%emt 0:0:40]
} 28. Rc3 {[%emt 0:0:2]} Rc8 {[%emt 0:1:18]} 29. Nxc5 {[%emt 0:0:31]
} Rxc5 {[%emt 0:0:3]} 30. Rxe3 {[%emt 0:0:11]} fxe3 {[%emt 0:0:0]} 31. Qxe3 {[%emt 0:0:4]} Ne5 {[%emt 0:0:18]} 32. Nf4 {[%emt 0:0:44]} Bc6 {[%emt 0:0:35]} 33. Qd4 {[%emt 0:1:52]} Qf6 {[%emt 0:0:35]} 34. Ne2 {[%emt 0:0:35]
} Qg7 {[%emt 0:0:58]} 35. Kf2 {[%emt 0:0:25]} Be8 {[%emt 0:0:0]} 36. Nc3 {[%emt 0:0:22]} Bf7 {[%emt 0:0:1]} 37. f4 {[%emt 0:0:26]} Nc4 {[%emt 0:0:29]} 38. Bxc4 {[%emt 0:0:10]} Qxd4+ {[%emt 0:0:3]} 39. Rxd4 {[%emt 0:0:2]
} dxc4 {[%emt 0:0:1]} 40. a4 {[%emt 0:0:5]} Rc6 {[%emt 0:0:0]} 41. g4 {[%emt 0:0:8]} Kg7 {[%emt 0:0:2]} 42. f5 {[%emt 0:0:8]} Kf6 {[%emt 0:0:11]
} 43. Kg3 {[%emt 0:0:3]} Ke5 {[%emt 0:0:7]} 44. Re4+ {[%emt 0:0:16]
} Kd6 {[%emt 0:0:21]} 45. Kf4 {[%emt 0:0:2]} Kc5 {[%emt 0:0:0]} 46. Re5+ {[%emt 0:0:42]} Kd4 {[%emt 0:0:1]} 47. Re7 {[%emt 0:0:1]} Bg8 {[%emt 0:0:4]} 48. Rg7 {[%emt 0:0:22]} Rc8 {[%emt 0:0:2]} 49. Rg6 Rb8 50. Rd6+ {[%emt 0:0:33]} Kc5 {[%emt 0:0:2]} 51. Rxh6 {[%emt 0:0:1]} Rd8 {[%emt 0:0:10]
} 52. Ne4+ {[%emt 0:0:7]} 1-0

[Event "FIDE World Rapid-ch Open 2018"]
[White "Oparin, Grigoriy"]
[Black "Dubov, Daniil"]
[Site "St. Petersburg"]
[Round "6.9"]
[Annotator "ChessBase"]
[Result "1/2-1/2"]
[Date "2018.12.27"]
[WhiteElo "2613"]
[BlackElo "2703"]
[PlyCount "173"]
[TimeControl "900+10"]

1. Nf3 {[%emt 0:0:0]} Nf6 {[%emt 0:0:13]} 2. g3 {[%emt 0:0:0]} g6 {[%emt 0:0:7]
} 3. Bg2 {[%emt 0:0:0]} Bg7 {[%emt 0:0:2]} 4. c4 {[%emt 0:0:0]} 0-0 {[%emt 0:0:9]} 5. Nc3 {[%emt 0:0:6]} d5 {[%emt 0:0:42]} 6. cxd5 {[%emt 0:0:4]
} Nxd5 {[%emt 0:0:3]} 7. h4 {[%emt 0:1:11]} Nxc3 {[%emt 0:0:0]} 8. bxc3 {[%emt 0:0:8]} e5 {[%emt 0:0:15]} 9. Qc2 {[%emt 0:0:26]} Bf5 {[%emt 0:0:50]
} 10. e4 {[%emt 0:0:26]} Bg4 {[%emt 0:0:13]} 11. d3 {[%emt 0:0:0]} c5 {[%emt 0:0:30]} 12. Be3 {[%emt 0:1:10]} b6 {[%emt 0:0:13]} 13. Nh2 {[%emt 0:4:12]} Be6 {[%emt 0:0:6]} 14. h5 {[%emt 0:0:2]} Nc6 {[%emt 0:0:0]} 15. hxg6 {[%emt 0:0:2]} hxg6 {[%emt 0:0:12]} 16. Nf3 {[%emt 0:0:15]
} c4 {[%emt 0:1:1]} 17. d4 {[%emt 0:0:34]} exd4 {[%emt 0:1:13]} 18. Nxd4 {[%emt 0:0:2]
} Ne5 {[%emt 0:0:40]} 19. 0-0 {[%emt 0:1:43]} Bg4 {[%emt 0:0:0]} 20. f3 {[%emt 0:0:7]} Bd7 {[%emt 0:0:1]} 21. f4 {[%emt 0:0:22]} Ng4 {[%emt 0:0:2]
} 22. Qe2 {[%emt 0:0:22]} b5 {[%emt 0:1:15]} 23. e5 {[%emt 0:0:0]} Rb8 {[%emt 0:0:34]} 24. Rad1 {[%emt 0:1:5]} Qb6 {[%emt 0:0:24]} 25. Bd2 {[%emt 0:1:31]} Nh6 {[%emt 0:1:28]} 26. Bf3 {[%emt 0:0:37]} Nf5 {[%emt 0:0:19]
} 27. Be1 {[%emt 0:0:22]} Nxd4 {[%emt 0:0:23]} 28. cxd4 {[%emt 0:0:1]
} Bf5 {[%emt 0:0:6]} 29. Bf2 {[%emt 0:0:12]} Bd3 {[%emt 0:0:0]} 30. Rxd3 {[%emt 0:0:2]} cxd3 {[%emt 0:0:1]} 31. Qxd3 {[%emt 0:0:2]} Qa5 {[%emt 0:0:17]} 32. Qe2 {[%emt 0:0:28]} Qa4 {[%emt 0:1:28]} 33. d5 {[%emt 0:0:1]
} Rbc8 {[%emt 0:0:19]} 34. Be4 {[%emt 0:0:33]} Rc4 {[%emt 0:0:0]} 35. Bd3 {[%emt 0:0:6]} Rc3 {[%emt 0:0:6]} 36. Bxb5 {[%emt 0:0:10]} Qa3 {[%emt 0:0:1]} 37. d6 {[%emt 0:1:12]} Rb8 {[%emt 0:0:7]} 38. Bc4 {[%emt 0:1:25]
} Rb2 {[%emt 0:1:2]} 39. d7 {[%emt 0:0:1]} Rxg3+ {[%emt 0:0:0]} 40. Kh2 {[%emt 0:0:1]} Qe7 {[%emt 0:0:9]} 41. Kxg3 {[%emt 0:1:13]} Rxe2 {[%emt 0:0:3]} 42. Rd1 {[%emt 0:0:1]} Qd8 {[%emt 0:0:7]} 43. Bxe2 {[%emt 0:0:2]
} Bf8 {[%emt 0:0:1]} 44. Bxa7 {[%emt 0:0:19]} Be7 {[%emt 0:0:0]} 45. Be3 {[%emt 0:0:8]} Qa5 {[%emt 0:0:14]} 46. Bc4 {[%emt 0:0:17]} Bd8 {[%emt 0:1:9]} 47. Bb3 {[%emt 0:0:1]} Qb5 {[%emt 0:0:46]} 48. Kf3 {[%emt 0:0:7]
} Qc6+ {[%emt 0:0:3]} 49. Rd5 {[%emt 0:0:15]} Qa6 {[%emt 0:0:0]} 50. Rd6 {[%emt 0:0:21]} Qf1+ {[%emt 0:0:3]} 51. Ke4 {[%emt 0:0:1]} Qh1+ {[%emt 0:0:25]} 52. Kd3 {[%emt 0:0:5]} Qf1+ {[%emt 0:0:8]} 53. Kc2 {[%emt 0:0:35]
} Qe2+ {[%emt 0:0:34]} 54. Bd2 {[%emt 0:0:1]} Qe4+ {[%emt 0:0:0]} 55. Kc1 {[%emt 0:0:1]} g5 {[%emt 0:0:25]} 56. fxg5 {[%emt 0:0:6]} Qxe5 {[%emt 0:0:7]} 57. Rd5 {[%emt 0:0:3]} Qe4 {[%emt 0:0:6]} 58. a4 {[%emt 0:0:23]
} Qh1+ {[%emt 0:0:18]} 59. Kb2 {[%emt 0:0:5]} Qg2 {[%emt 0:0:0]} 60. a5 {[%emt 0:0:17]} Qf2 {[%emt 0:0:4]} 61. Kc2 {[%emt 0:0:12]} Kf8 {[%emt 0:0:5]} 62. a6 {[%emt 0:0:8]} Qb6 {[%emt 0:0:26]} 63. Bc4 {[%emt 0:0:0]} Qc6 {[%emt 0:0:3]} 64. Kb3 {[%emt 0:0:2]} Qb6+ {[%emt 0:0:8]} 65. Bb4+ {[%emt 0:0:16]} Kg7 {[%emt 0:0:2]} 66. Rf5 {[%emt 0:0:40]} Qe3+ {[%emt 0:0:9]
} 67. Bc3+ {[%emt 0:0:4]} Kg6 {[%emt 0:0:2]} 68. Rd5 {[%emt 0:0:20]
} Bxg5 {[%emt 0:0:17]} 69. Bd3+ {[%emt 0:0:8]} f5 {[%emt 0:0:0]} 70. Bxf5+ {[%emt 0:0:15]} Kf7 {[%emt 0:0:1]} 71. Bd3 {[%emt 0:0:12]} Bd8 {[%emt 0:0:11]} 72. Rf5+ {[%emt 0:0:3]} Kg8 {[%emt 0:0:17]} 73. Bc4+ {[%emt 0:0:15]
} Kh7 {[%emt 0:0:1]} 74. Rh5+ {[%emt 0:0:10]} Kg6 {[%emt 0:0:0]} 75. Re5 {[%emt 0:0:1]} Qb6+ {[%emt 0:0:24]} 76. Bb4 {[%emt 0:0:3]} Qg1 {[%emt 0:0:26]} 77. Bd3+ {[%emt 0:0:17]} Kf7 {[%emt 0:0:7]} 78. Bc4+ {[%emt 0:0:22]
} Kg6 {[%emt 0:0:3]} 79. Re1 {[%emt 0:0:5]} Qg3+ {[%emt 0:0:0]} 80. Ka4 {[%emt 0:0:4]} Qc7 {[%emt 0:0:9]} 81. Bb5 {[%emt 0:0:24]} Qc2+ {[%emt 0:0:4]} 82. Ka3 {[%emt 0:0:3]} Bf6 {[%emt 0:0:9]} 83. Re2 {[%emt 0:0:10]
} Qc1+ {[%emt 0:0:14]} 84. Kb3 {[%emt 0:0:3]} Qd1+ {[%emt 0:0:0]} 85. Ka3 {[%emt 0:0:16]} Qc1+ {[%emt 0:0:4]} 86. Kb3 {[%emt 0:0:1]} Qd1+ {[%emt 0:0:2]} 87. Ka3 {[%emt 0:0:10]} 1/2-1/2